Workbook

Sheet Mulai
B1: TENTANG TEMPLAT INI
B2: Gunakan buku kerja Anggaran Acara ini untuk mencatat Pengeluaran yang dikeluarkan dan Pendapatan yang didapatkan dari acara.
B3: Isi Nama Acara dan masukkan detail dalam tabel di lembar kerja Pengeluaran dan lembar kerja Pendapatan.
B4: Total Pengeluaran dan Total Pendapatan dihitung secara otomatis.
B5: Ringkasan Laba & Rugi serta Bagan diperbarui secara otomatis dalam lembar kerja Ringkasan Laba-Rugi.
B6: Catatan:
B7: Instruksi tambahan telah tersedia di kolom A dalam setiap lembar kerja. Teks ini sengaja disembunyikan. Untuk menghapus teks, pilih kolom A, lalu pilih HAPUS. Untuk memperlihatkan teks, pilih kolom A, lalu ubah warna font.
B8: Untuk mempelajari selengkapnya tentang tabel, tekan SHIFT lalu F10 dalam tabel, pilih opsi TABEL, lalu pilih TEKS ALTERNATIF.

Sheet Pengeluaran
A1: Masukkan Estimasi pengeluaran dan pengeluaran Aktual untuk setiap kategori dalam tabel masing-masing dalam lembar kerja ini, dan Nama Acara dalam sel D1 untuk mengustomisasi judul lembar kerja ini dan yang lain. Subjudul lembar kerja ini berada di sel H1. Instruksi bermanfaat tentang cara menggunakan lembar kerja ada pada sel-sel dalam kolom ini. Instruksi berikutnya berada dalam sel A3. | B1: Anggaran Acara untuk Nama Acara | H1: PENGELUARAN
A3: Label Total Pengeluaran berada dalam sel di sebelah kanan, label Estimasi di sel G3, dan Aktual di H3. | B3: TOTAL PENGELUARAN | G3: Estimasi | H3: Aktual
A4: Total Estimasi Pengeluaran di G4 dan Total Pengeluaran Aktual di H4 dihitung secara otomatis. Instruksi berikutnya berada dalam sel A6. | G4: =SUM(C11,C19,C25,C32,G11,G19,G24) -> Rp882.00 | H4: =SUM(D11,D19,D25,D32,H11,H19,H24) -> Rp333.00
A6: Masukkan Pengeluaran Lokasi di tabel yang dimulai dari sel di sebelah kanan dan Pengeluaran Makanan Ringan dalam tabel yang dimulai dari sel F6. Instruksi berikutnya berada dalam sel A13. | B6: Lokasi | C6: Estimasi | D6: Aktual | F6: Makanan Ringan | G6: Estimasi | H6: Aktual
B7: Biaya ruangan dan aula | C7: Rp500.00 | F7: Makanan
B8: Staf lokasi | F8: Minuman | G8: Rp20.00
B9: Peralatan | F9: Taplak | H9: Rp20.00
B10: Meja dan kursi | F10: Staf dan tip
B11: Total | C11: =SUBTOTAL(109,PengeluaranLokasi[Estimasi]) -> Rp500.00 | D11: =SUBTOTAL(109,PengeluaranLokasi[Aktual]) -> Rp0.00 | F11: Total | G11: =SUBTOTAL(109,PengeluaranMakananRingan[Estimasi]) -> Rp20.00 | H11: =SUBTOTAL(109,PengeluaranMakananRingan[Aktual]) -> Rp20.00
A13: Masukkan Pengeluaran Dekorasi dalam tabel yang dimulai dari sel di sebelah kanan dan Pengeluaran Program di tabel yang dimulai di sel F13. Instruksi berikutnya berada dalam sel A21. | B13: Dekorasi | C13: Estimasi | D13: Aktual | F13: Program | G13: Estimasi | H13: Aktual
B14: Bunga | C14: Rp200.00 | D14: Rp300.00 | F14: Hiburan
B15: Lilin | F15: Pembicara | G15: Rp30.00
B16: Lampu | F16: Perjalanan
B17: Balon | F17: Hotel
B18: Perlengkapan kertas | F18: Lainnya
B19: Total | C19: =SUBTOTAL(109,PengeluaranDekorasi[Estimasi]) -> Rp200.00 | D19: =SUBTOTAL(109,PengeluaranDekorasi[Aktual]) -> Rp300.00 | F19: Total | G19: =SUBTOTAL(109,PengeluaranProgram[Estimasi]) -> Rp30.00 | H19: =SUBTOTAL(109,PengeluaranProgram[Aktual]) -> Rp0.00
A21: Masukkan Pengeluaran Publikasi dalam tabel yang dimulai dari sel di sebelah kanan dan Pengeluaran Hadiah di tabel yang dimulai di sel F21. Instruksi berikutnya berada dalam sel A27 | B21: Publikasi | C21: Estimasi | D21: Aktual | F21: Hadiah | G21: Estimasi | H21: Aktual
B22: Karya grafis | F22: Pita/Plakat/Piala
B23: Fotokopi/Percetakan | C23: Rp20.00 | F23: Hadiah | G23: Rp100.00
B24: Ongkos kirim | F24: Total | G24: =SUBTOTAL(109,PengeluaranHadiah[Estimasi]) -> Rp100.00 | H24: =SUBTOTAL(109,PengeluaranHadiah[Aktual]) -> Rp0.00
B25: Total | C25: =SUBTOTAL(109,PengeluaranPublikasi[Estimasi]) -> Rp20.00 | D25: =SUBTOTAL(109,PengeluaranPublikasi[Aktual]) -> Rp0.00
A27: Masukkan Pengeluaran Lain-lain dalam tabel yang dimulai dari sel di sebelah kanan. | B27: Lain-lain | C27: Estimasi | D27: Aktual
B28: Telepon | D28: Rp13.00
B29: Transportasi | C29: Rp12.00
B30: Perlengkapan alat tulis
B31: Layanan faks
B32: Total | C32: =SUBTOTAL(109,PengeluaranLain_lain[Estimasi]) -> Rp12.00 | D32: =SUBTOTAL(109,PengeluaranLain_lain[Aktual]) -> Rp13.00

Sheet Pendapatan
A1: Masukkan Estimasi pendapatan dan pendapatan Aktual dari setiap kategori dalam tabel masing-masing dalam lembar kerja ini. Judul lembar kerja ini diperbarui secara otomatis dalam sel di sebelah kanan. Subjudul berada dalam sel G1. Instruksi bermanfaat tentang cara menggunakan lembar kerja ada pada sel-sel dalam kolom ini. Instruksi berikutnya berada dalam sel A3. | B1: =Pengeluaran!B1 -> Anggaran Acara untuk Nama Acara | G1: PENDAPATAN
A3: Label Total Pendapatan berada dalam sel di sebelah kanan, label Estimasi di sel F3, dan Aktual di G3. | B3: TOTAL PENDAPATAN | F3: Estimasi | G3: Aktual
A4: Total Estimasi Pendapatan dihitung secara otomatis dalam sel F4 dan Total Pendapatan Aktual di G4. | F4: =SUM(TiketMasuk[[#Totals],[Estimasi Pendapatan]],IklandalamProgram[[#Totals],[Estimasi Pendapatan]],PesertaPameranDanVendor[[#Totals],[Estimasi Pendapatan]],PenjualanItem[[#Totals],[Estimasi Pendapatan]]) -> Rp1,936.00 | G4: =SUM(TiketMasuk[[#Totals],[Pendapatan Aktual]],IklandalamProgram[[#Totals],[Pendapatan Aktual]],PesertaPameranDanVendor[[#Totals],[Pendapatan Aktual]],PenjualanItem[[#Totals],[Pendapatan Aktual]]) -> Rp1,831.00
A5: Label Tiket Masuk berada dalam sel di sebelah kanan. | B5: TIKET MASUK
A6: Masukkan jumlah Estimasi tiket masuk dan tiket masuk Aktual dengan harga tiket dalam tabel yang dimulai dalam sel di sebelah kanan. Estimasi Pendapatan dan Pendapatan Aktual dari Tiket Masuk dihitung secara otomatis. Instruksi berikutnya berada dalam sel A11. | B6: Jumlah Estimasi | C6: Jumlah Aktual | D6: Tipe | E6: Harga | F6: Estimasi Pendapatan | G6: Pendapatan Aktual
B7: 300 | C7: 278 | D7: Dewasa @ | E7: Rp5.00 | F7: =B7*E7 -> Rp1,500.00 | G7: =C7*E7 -> Rp1,390.00
B8: 197 | C8: 195 | D8: Anak-anak @ | E8: Rp2.00 | F8: =B8*E8 -> Rp394.00 | G8: =C8*E8 -> Rp390.00
B9: 42 | C9: 51 | D9: Lainnya @ | E9: Rp1.00 | F9: =B9*E9 -> Rp42.00 | G9: =C9*E9 -> Rp51.00
B10: Total | F10: =SUBTOTAL(109,TiketMasuk[Estimasi Pendapatan]) -> Rp1,936.00 | G10: =SUBTOTAL(109,TiketMasuk[Pendapatan Aktual]) -> Rp1,831.00
A11: Label Iklan dalam Program berada dalam sel di sebelah kanan. | B11: IKLAN DALAM PROGRAM
A12: Masukkan jumlah Estimasi Iklan dan jumlah Iklan Aktual di Program dan tarif Iklan dalam tabel yang dimulai dalam sel di sebelah kanan. Estimasi Pendapatan dan Pendapatan Aktual dari Iklan dihitung secara otomatis. Instruksi berikutnya berada dalam sel A17. | B12: Jumlah Estimasi | C12: Jumlah Aktual | D12: Tipe | E12: Harga | F12: Estimasi Pendapatan | G12: Pendapatan Aktual
B13: 12 | D13: Sampul @ | F13: =B13*E13 -> Rp0.00 | G13: =C13*E13 -> Rp0.00
C14: 158 | D14: Setengah halaman @ | F14: =B14*E14 -> Rp0.00 | G14: =C14*E14 -> Rp0.00
B15: 4 | D15: Seperempat halaman @ | F15: =B15*E15 -> Rp0.00 | G15: =C15*E15 -> Rp0.00
B16: Total | F16: =SUBTOTAL(109,IklandalamProgram[Estimasi Pendapatan]) -> Rp0.00 | G16: =SUBTOTAL(109,IklandalamProgram[Pendapatan Aktual]) -> Rp0.00
A17: Label Peserta Pameran atau Vendor berada dalam sel di sebelah kanan. | B17: PESERTA PAMERAN/VENDOR
A18: Masukkan jumlah Estimasi peserta pameran dan vendor, jumlah Aktual peserta pameran dan vendor, serta tarif stan dalam tabel yang dimulai dari sel di sebelah kanan. Estimasi Pendapatan dan Pendapatan Aktual dihitung secara otomatis. Instruksi berikutnya berada dalam sel A23. | B18: Jumlah Estimasi | C18: Jumlah Aktual | D18: Tipe | E18: Harga | F18: Estimasi Pendapatan | G18: Pendapatan Aktual
B19: 23 | D19: Stan besar @ | F19: =B19*E19 -> Rp0.00 | G19: =C19*E19 -> Rp0.00
B20: 354 | D20: Stan sedang @ | F20: =B20*E20 -> Rp0.00 | G20: =C20*E20 -> Rp0.00
B21: 56 | D21: Stan kecil @ | F21: =B21*E21 -> Rp0.00 | G21: =C21*E21 -> Rp0.00
B22: Total | F22: =SUBTOTAL(109,PesertaPameranDanVendor[Estimasi Pendapatan]) -> Rp0.00 | G22: =SUBTOTAL(109,PesertaPameranDanVendor[Pendapatan Aktual]) -> Rp0.00
A23: Label Penjualan item berada dalam sel di sebelah kanan. | B23: PENJUALAN ITEM
A24: Masukkan jumlah Estimasi item yang terjual, jumlah Aktual item yang terjual, dan tarif item dalam tabel yang dimulai dari sel di sebelah kanan. Estimasi Pendapatan dan Pendapatan Aktual dihitung secara otomatis. | B24: Jumlah Estimasi | C24: Jumlah Aktual | D24: Tipe | E24: Harga | F24: Estimasi Pendapatan | G24: Pendapatan Aktual
D25: Item @ | F25: =B25*E25 -> Rp0.00 | G25: =C25*E25 -> Rp0.00
B26: 123 | D26: Item @ | F26: =B26*E26 -> Rp0.00 | G26: =C26*E26 -> Rp0.00
D27: Item @ | F27: =B27*E27 -> Rp0.00 | G27: =C27*E27 -> Rp0.00
B28: 13 | D28: Item @ | F28: =B28*E28 -> Rp0.00 | G28: =C28*E28 -> Rp0.00
B29: Total | F29: =SUBTOTAL(109,PenjualanItem[Estimasi Pendapatan]) -> Rp0.00 | G29: =SUBTOTAL(109,PenjualanItem[Pendapatan Aktual]) -> Rp0.00

Sheet Ringkasan Laba-Rugi
A1: Ringkasan Laba & Rugi serta Bagan yang memperlihatkan Total Pendapatan dan Pengeluaran diperbarui secara otomatis dalam lembar kerja ini. Judul lembar kerja ini diperbarui secara otomatis dalam sel di sebelah kanan. Subjudul berada dalam sel G1 dan G2. Instruksi bermanfaat tentang cara menggunakan lembar kerja ada pada sel-sel dalam kolom ini. Instruksi berikutnya berada dalam sel A3. | B1: =Pengeluaran!B1 -> Anggaran Acara untuk Nama Acara | G1: LABA
G2: Ringkasan Rugi
A3: Bagan batang yang membandingkan Estimasi Pendapatan dan Pengeluaran serta Pendapatan dan Pengeluaran Aktual berada dalam sel E3. | E3: Bagan batang yang memperlihatkan perbandingan Estimasi Pendapatan dan Pengeluaran serta Pendapatan dan Pengeluaran Aktual berada dalam sel ini.
A4: Tabel Ringkasan yang dimulai dari sel di sebelah kanan diperbarui secara otomatis. Instruksi berikutnya berada dalam sel A8. | B4: Total | C4: Estimasi | D4: Aktual
B5: Total pendapatan | C5: =Pendapatan!F4 -> Rp1,936.00 | D5: =Pendapatan!G4 -> Rp1,831.00
B6: Total pengeluaran | C6: =Pengeluaran!G4 -> Rp882.00 | D6: =Pengeluaran!H4 -> Rp333.00
A8: Total Estimasi laba atau rugi dihitung secara otomatis dalam sel C8 dan Total laba atau rugi Aktual di sel D8. | B8: Total laba (atau rugi) | C8: =C5-C6 -> Rp1,054.00 | D8: =D5-D6 -> Rp1,498.00
